fUST/lending_fUST_20241113
["ID","MTS","AMOUNT","RATE_DAILY","PERIOD"]
[342089681,1731427855469,-500.0,0.00024109,2]
[342089682,1731427855478,-1029.95,0.00024109,2]
[342089683,1731427855487,-766.18,0.00024109,2]
[342089684,1731427855497,-500.0,0.00024109,2]
[342089685,1731427855506,-500.0,0.00024109,2]
[342089686,1731427855515,-545.35,0.00024109,2]
[342089687,1731427855524,-500.0,0.00024109,2]
[342089688,1731427855533,-500.0,0.00024109,2]
[342089689,1731427855543,-500.0,0.00024109,2]
[342089690,1731427855552,-500.0,0.00024109,2]
[342089691,1731427855562,-673.69,0.00024109,2]
[342089692,1731427855571,-1480.53,0.00024109,2]
[342089693,1731427855581,-15697.84,0.00024109,2]
[342089694,1731427855590,-545.62,0.00024109,2]
[342089695,1731427855599,-500.0,0.00024109,2]
[342089696,1731427855609,-500.0,0.00024109,2]
[342089697,1731427855619,-1454.27,0.00024109,2]
[342089698,1731427855628,-747.43,0.00024109,2]
[342089699,1731427855638,-556.7,0.00024109,2]
[342089700,1731427855647,-500.0,0.00024109,2]
[342089701,1731427855656,-766.54,0.00024109,2]
[342089702,1731427855666,-1409.25,0.00024109,2]
[342089703,1731427855675,-500.0,0.00024109,2]
[342089704,1731427855685,-4284.5,0.00024109,2]
[342089705,1731427855694,-619.07,0.00024109,2]
[342089706,1731427855703,-500.0,0.00024109,2]
[342089707,1731427855714,-2274.26,0.00024109,2]
[342089708,1731427855723,-692.33,0.00024109,2]
[342089709,1731427855732,-1196.9,0.00024109,2]
[342089710,1731427855742,-500.0,0.00024109,2]
[342089711,1731427855751,-690.14,0.00024109,2]
[342089712,1731427855760,-1797.55,0.00024109,2]
[342089713,1731427855770,-1068.8,0.00024109,2]
[342089714,1731427855779,-516.72,0.00024109,2]
[342089715,1731427855788,-1104.99,0.00024109,2]
[342089716,1731427855797,-518.67,0.00024109,2]
[342089717,1731427855806,-1387.9,0.00024109,2]
[342089718,1731427855815,-2379.89,0.00024109,2]
[342089719,1731427855824,-500.0,0.00024109,2]
[342089720,1731427855834,-3133.91,0.00024109,2]
[342089721,1731427855843,-500.0,0.00024109,2]
[342089722,1731427855851,-564.72,0.00024109,2]
[342089723,1731427855861,-500.0,0.00024109,2]
[342089724,1731427855870,-667.81,0.00024109,2]
[342089725,1731427855880,-151.0,0.00024109,7]
[342089726,1731427855889,-1080.98,0.00024109,2]
[342089727,1731427855898,-678.26,0.00024109,2]
[342089728,1731427855907,-6059.29,0.00024109,2]
[342089729,1731427855971,-151.0,0.00024109,7]
[342089730,1731427855981,-1217.89,0.00024109,2]
[342089731,1731427855990,-5669.83,0.00024109,2]
[342089732,1731427856000,-1538.91,0.00024109,2]
[342089733,1731427856010,-3380.5,0.00024109,2]
[342089734,1731427856019,-500.38,0.00024109,2]
[342089735,1731427856029,-500.0,0.00024109,2]
[342089736,1731427856038,-500.0,0.00024109,2]
[342089737,1731427856048,-151.0,0.00024109,7]
[342089738,1731427856057,-753.2,0.00024109,2]
[342089739,1731427856066,-6000.0,0.00024283,2]
[342089740,1731427856076,-2599.17447963,0.00024289,2]
[342089741,1731427856085,-281.2282512,0.00024383,2]
[342089742,1731427856094,-151.0,0.00024383,7]
[342089743,1731427856104,-500.0,0.00024383,2]
[342089744,1731427856115,-151.0,0.00024383,7]
[342089745,1731427856126,-500.0,0.00024383,2]
[342089746,1731427856137,-193.4378,0.00024383,7]
[342089747,1731427856146,-151.0,0.00024383,7]
[342089748,1731427856156,-320.1897566,0.00024383,2]
[342089749,1731427856166,-511.82,0.00024383,2]
[342089750,1731427856175,-500.0,0.00024383,2]
[342089751,1731427856185,-500.0,0.00024383,2]
[342089752,1731427856196,-762.6,0.00024383,2]
[342089753,1731427856209,-500.0,0.00024383,2]
[342089754,1731427856219,-164.170167,0.00024383,7]
[342089755,1731427856228,-500.0,0.00024383,2]
[342089756,1731427856238,-164.170167,0.00024383,7]
[342089757,1731427856247,-500.0,0.00024383,2]
[342089758,1731427856257,-151.0,0.00024383,7]
[342089759,1731427856266,-151.0,0.00024383,7]
[342089760,1731427856275,-500.0,0.00024383,2]
[342089761,1731427856284,-500.0,0.00024383,2]
[342089762,1731427856294,-500.0,0.00024383,2]
[342089763,1731427856303,-372.309996,0.00024383,7]
[342089764,1731427856312,-1029.95,0.00024383,2]
[342089765,1731427856322,-372.309996,0.00024383,7]
[342089766,1731427856331,-766.18,0.00024383,2]
[342089767,1731427856340,-500.0,0.00024383,2]
[342089768,1731427856349,-500.0,0.00024383,2]
[342089769,1731427856359,-500.0,0.00024383,2]
[342089770,1731427856369,-500.0,0.00024383,2]
[342089771,1731427856378,-500.0,0.00024383,2]
[342089772,1731427856387,-538.28915345,0.00024383,2]
[342089773,1731427856396,-673.69,0.00024383,2]
[342089774,1731427856405,-1480.53,0.00024383,2]
[342089775,1731427856426,-15697.84,0.00024383,2]
[342089776,1731427856443,-545.62,0.00024383,2]
[342089777,1731427856466,-500.0,0.00024383,2]
[342089778,1731427856485,-500.0,0.00024383,2]
[342089779,1731427856503,-499.27737,0.00024383,7]
[342089780,1731427856521,-1454.27,0.00024383,2]
[342089781,1731427856539,-747.43,0.00024383,2]
[342089782,1731427856553,-499.27737,0.00024383,7]
[342089783,1731427856570,-556.7,0.00024383,2]
[342089784,1731427856588,-500.0,0.00024383,2]
[342089785,1731427856608,-338.744848,0.00024383,7]
[342089786,1731427856620,-766.54,0.00024383,2]
[342089787,1731427856637,-338.744848,0.00024383,7]
[342089788,1731427856652,-1409.25,0.00024383,2]
[342089789,1731427856668,-500.0,0.00024383,2]
[342089790,1731427856680,-4284.5,0.00024383,2]
[342089791,1731427856694,-619.07,0.00024383,2]
[342089792,1731427856709,-500.0,0.00024383,2]
[342089793,1731427856723,-2274.26,0.00024383,2]
[342089794,1731427856737,-692.33,0.00024383,2]
[342089795,1731427856751,-1196.9,0.00024383,2]
[342089796,1731427856765,-151.0,0.00024383,2]
[342089797,1731427856779,-163.58488,0.00024383,2]
[342089798,1731427856793,-500.0,0.00024383,2]
[342089799,1731427856808,-690.14,0.00024383,2]
[342089800,1731427856822,-1797.55,0.00024383,2]
[342089801,1731427856836,-1068.8,0.00024383,2]
[342089802,1731427856851,-516.72,0.00024383,2]
[342089803,1731427856866,-1104.99,0.00024383,2]
[342089804,1731427856881,-518.67,0.00024383,2]
[342089805,1731427856895,-1387.9,0.00024383,2]
[342089806,1731427856905,-2379.89,0.00024383,2]
[342089807,1731427856913,-500.0,0.00024383,2]
[342089808,1731427856924,-3133.91,0.00024383,2]
[342089809,1731427856933,-500.0,0.00024383,2]
[342089810,1731427856943,-564.72,0.00024383,2]
[342089811,1731427856952,-500.0,0.00024383,2]
[342089812,1731427856965,-667.81,0.00024383,2]
[342089813,1731427856974,-1080.98,0.00024383,2]
[342089814,1731427856984,-678.26,0.00024383,2]
[342089815,1731427856993,-6059.29,0.00024383,2]
[342089816,1731427857003,-1217.89,0.00024383,2]
[342089817,1731427857014,-5669.83,0.00024383,2]
[342089818,1731427857023,-1538.91,0.00024383,2]
[342089819,1731427857033,-3380.5,0.00024383,2]
[342089820,1731427857042,-500.38,0.00024383,2]
[342089821,1731427857051,-500.0,0.00024383,2]
[342089822,1731427857219,-500.0,0.00024383,2]
[342089823,1731427857231,-753.2,0.00024383,2]
[342089824,1731427857241,-279.5,0.00024408,3]
[342089825,1731427857251,-167.925452,0.00024482,2]
[342089826,1731427857260,-587.0,0.00024495,2]
[342089827,1731427857270,-2853.0,0.00024507,7]
[342089828,1731427857279,-151.0,0.00024657,7]
[342089829,1731427857289,-151.0,0.00024657,7]
[342089830,1731427857298,-151.0,0.00024657,7]
[342089831,1731427857308,-151.0,0.00024657,7]
[342089832,1731427857317,-500.0,0.00024657,2]
[342089833,1731427857327,-206.3127734,0.00024657,2]
[342089834,1731427857336,-200.0,0.00024657,2]
[342089835,1731427857346,-200.0,0.00024657,2]
[342089836,1731427857355,-200.0,0.00024657,2]
[342089837,1731427857365,-200.0,0.00024657,2]
[342089838,1731427857374,-200.0,0.00024657,2]
[342089839,1731427857384,-200.0,0.00024657,2]
[342089840,1731427857393,-200.0,0.00024657,2]
[342089841,1731427857403,-200.0,0.00024657,2]
[342089842,1731427857413,-200.0,0.00024657,2]
[342089843,1731427857422,-200.0,0.00024657,2]
[342089844,1731427857431,-200.0,0.00024657,2]
[342089845,1731427857441,-151.0,0.00024657,7]
[342089846,1731427857450,-151.0,0.00024657,7]
[342089847,1731427857463,-151.0,0.00024657,7]
[342089848,1731427857472,-262.46664,0.00024657,7]
[342089849,1731427857481,-511.82,0.00024657,2]
[342089850,1731427857490,-500.0,0.00024657,2]
[342089851,1731427857500,-500.0,0.00024657,2]
[342089852,1731427857509,-762.6,0.00024657,2]
[342089853,1731427857519,-500.0,0.00024657,2]
[342089854,1731427857529,-164.170167,0.00024657,7]
[342089855,1731427857538,-262.82,0.00024657,2]
[342089856,1731427857548,-164.170167,0.00024657,7]
[342089857,1731427857557,-500.0,0.00024657,2]
[342089858,1731427857566,-151.0,0.00024657,7]
[342089859,1731427857575,-151.0,0.00024657,7]
[342089860,1731427857585,-500.0,0.00024657,2]
[342089861,1731427857594,-500.0,0.00024657,2]
[342089862,1731427857603,-500.0,0.00024657,2]
[342089863,1731427857612,-372.309996,0.00024657,7]
[342089864,1731427857622,-1029.95,0.00024657,2]
[342089865,1731427857631,-372.309996,0.00024657,7]
[342089866,1731427857640,-766.18,0.00024657,2]
[342089867,1731427857650,-500.0,0.00024657,2]
[342089868,1731427857659,-500.0,0.00024657,2]
[342089869,1731427857669,-500.0,0.00024657,2]
[342089870,1731427857678,-500.0,0.00024657,2]
[342089871,1731427857688,-500.0,0.00024657,2]
[342089872,1731427857698,-673.69,0.00024657,2]
[342089873,1731427857711,-1480.53,0.00024657,2]
[342089874,1731427857720,-15697.84,0.00024657,2]
[342089875,1731427857729,-545.62,0.00024657,2]
[342089876,1731427857738,-245.5,0.00024657,2]
[342089877,1731427857748,-500.0,0.00024657,2]
[342089878,1731427857757,-499.27737,0.00024657,7]
[342089879,1731427857767,-1454.27,0.00024657,2]
[342089880,1731427857777,-747.43,0.00024657,2]
[342089881,1731427857787,-499.27737,0.00024657,7]
[342089882,1731427857796,-556.7,0.00024657,2]
[342089883,1731427857805,-500.0,0.00024657,2]
[342089884,1731427857815,-338.744848,0.00024657,7]
[342089885,1731427857824,-766.54,0.00024657,2]
[342089886,1731427857833,-338.744848,0.00024657,7]
[342089887,1731427857842,-1409.25,0.00024657,2]
[342089888,1731427857852,-500.0,0.00024657,2]
[342089889,1731427857860,-4284.5,0.00024657,2]
[342089890,1731427857871,-619.07,0.00024657,2]
[342089891,1731427857881,-500.0,0.00024657,2]
[342089892,1731427857891,-2274.26,0.00024657,2]
[342089893,1731427857900,-692.33,0.00024657,2]
[342089894,1731427857910,-1196.9,0.00024657,2]
[342089895,1731427857919,-151.0,0.00024657,2]
[342089896,1731427857929,-500.0,0.00024657,2]
[342089897,1731427857938,-690.14,0.00024657,2]
[342089898,1731427857948,-1797.55,0.00024657,2]
[342089899,1731427857963,-1068.8,0.00024657,2]
[342089900,1731427857973,-516.72,0.00024657,2]
[342089901,1731427857983,-1104.99,0.00024657,2]
[342089902,1731427857993,-518.67,0.00024657,2]
[342089903,1731427858003,-1387.9,0.00024657,2]
[342089904,1731427858012,-2379.89,0.00024657,2]
[342089905,1731427858022,-500.0,0.00024657,2]
[342089906,1731427858031,-500.0,0.00024657,2]
[342089907,1731427858041,-3133.91,0.00024657,2]
[342089908,1731427858051,-564.72,0.00024657,2]
[342089909,1731427858061,-500.0,0.00024657,2]
[342089910,1731427858070,-667.81,0.00024657,2]
[342089911,1731427858080,-151.0,0.00024657,7]
[342089912,1731427858089,-1080.98,0.00024657,2]
[342089913,1731427858099,-678.26,0.00024657,2]
[342089914,1731427858109,-6059.29,0.00024657,2]
[342089915,1731427858119,-158.411284,0.00024657,7]
[342089916,1731427858130,-1217.89,0.00024657,2]
[342089917,1731427858140,-5669.83,0.00024657,2]
[342089918,1731427858150,-1538.91,0.00024657,2]
[342089919,1731427858160,-3380.5,0.00024657,2]
[342089920,1731427858171,-500.38,0.00024657,2]
[342089921,1731427858181,-500.0,0.00024657,2]
[342089922,1731427858191,-500.0,0.00024657,2]
[342089923,1731427858202,-151.0,0.00024657,7]
[342089924,1731427858218,-753.2,0.00024657,2]
[342089925,1731427858228,-151.0,0.00024658,7]
[342089926,1731427858238,-151.0,0.00024658,7]
[342089927,1731427858247,-151.0,0.00024658,7]
[342089928,1731427858256,-151.0,0.00024658,7]
[342089929,1731427858266,-151.0,0.00024658,7]
[342089930,1731427858275,-151.0,0.00024658,7]
[342089931,1731427858286,-151.0,0.00024658,7]
[342089932,1731427858295,-151.0,0.00024658,7]
[342089933,1731427858304,-151.0,0.00024658,7]
[342089934,1731427858313,-151.0,0.00024658,7]
[342089935,1731427858323,-151.0,0.00024658,7]
[342089936,1731427858332,-281.39821,0.00024658,7]
[342089937,1731427858341,-200.0,0.00024658,15]
[342089938,1731427858351,-200.0,0.00024658,2]
[342089939,1731427858360,-700.0,0.000248,7]
[342089940,1731427858369,-2000.0,0.0002482,2]
[342089941,1731427858377,-151.0,0.000249,7]
[342089942,1731427858386,-151.0,0.00024931,7]
[342089943,1731427858395,-500.0,0.00024931,2]
[342089944,1731427858404,-200.0,0.00024931,2]
[342089945,1731427858414,-255.429402,0.00024931,7]
[342089946,1731427858424,-151.0,0.00024931,7]
[342089947,1731427858433,-289.425308,0.00024931,7]
[342089948,1731427858442,-511.82,0.00024931,2]
[342089949,1731427858451,-500.0,0.00024931,2]
[342089950,1731427858463,-500.0,0.00024931,2]
[342089951,1731427858472,-762.6,0.00024931,2]
[342089952,1731427858481,-500.0,0.00024931,2]
[342089953,1731427858490,-273.65041539,0.00024931,2]
[342089954,1731427858508,-226.34958461,0.00024931,2]
[342089955,1731427858517,-500.0,0.00024931,2]
[342089956,1731427858527,-500.0,0.00024931,2]
[342089957,1731427858536,-500.0,0.00024931,2]
[342089958,1731427858545,-1029.95,0.00024931,2]
[342089959,1731427858554,-766.18,0.00024931,2]
[342089960,1731427858563,-500.0,0.00024931,2]
[342089961,1731427858572,-500.0,0.00024931,2]
[342089962,1731427858581,-500.0,0.00024931,2]
[342089963,1731427858591,-500.0,0.00024931,2]
[342089964,1731427858601,-500.0,0.00024931,2]
[342089965,1731427858611,-673.69,0.00024931,2]
[342089966,1731427858620,-1480.53,0.00024931,2]
[342089967,1731427858629,-7869.72208389,0.00024931,2]
[342089969,1731427936581,425.03595768,0.00027397,60]
[342089970,1731427955195,175.77716,0.00013973,2]
[342089972,1731428022850,-2000000.0,0.00030571,10]
[342089974,1731428177698,1000.0,0.00027,60]
[342089977,1731428193452,1000.0,0.00027,60]
[342089981,1731428244188,1000.0,0.00027,60]
[342089982,1731428254292,1169.27083333,0.00020185,2]
[342089983,1731428264185,574.98,0.00027,60]
[342089985,1731428355790,160.2986037,0.00019481,2]
[342089995,1731428507770,1000.0,0.0003,120]
[342089997,1731428565662,1169.27083333,0.00020185,2]
[342090005,1731428786735,1000.0,0.00027,60]
[342090006,1731428815048,1169.27083333,0.00020185,2]
[342090007,1731428818129,-179.5794738,0.00020243,2]
[342090008,1731428818150,-1407.3240799,0.00020367,2]
[342090009,1731428818173,-1655.82421,0.00020384,2]
[342090010,1731428818194,-395.439758,0.0002063,2]
[342090011,1731428818214,-626.439321,0.00020765,2]
[342090012,1731428818237,-299.45,0.000208,2]
[342090013,1731428818262,-626.439321,0.0002145,2]
[342090014,1731428818286,-2640.45292128,0.000218,2]
[342090015,1731428818307,-300.0,0.00021813,2]
[342090016,1731428818329,-300.0,0.00021815,2]
[342090017,1731428818350,-1138.44136002,0.00021816,3]
[342090019,1731428925128,948.22161951,0.00028,120]
[342090020,1731428925149,272.97792101,0.00028,120]
[342090024,1731428986772,1000.0,0.00027,60]
[342090025,1731428998805,1000.0,0.00027,60]
[342090026,1731429006487,1000.0,0.00027,60]
[342090036,1731429015404,1000.0,0.00027,60]
[342090039,1731429023969,1000.0,0.00027,60]
[342090085,1731429032263,-877.55305,0.00020186,2]
[342090088,1731429032274,-291.71778333,0.00020186,2]
[342090090,1731429032283,-269.5,0.000215,2]
[342090092,1731429032293,-622.29544667,0.00021817,2]
[342090097,1731429032337,-53.09422238,0.00021817,2]
[342090099,1731429032347,-497.88192012,0.00021817,2]
[342090104,1731429032380,-1812.514386,0.00021817,2]
[342090106,1731429032389,-150.0,0.000219,2]
[342090108,1731429032399,-270.441868,0.000219,2]
[342090110,1731429032408,-231.85,0.00021907,3]
[342090112,1731429032417,-695.55,0.00021907,3]
[342090114,1731429032431,-300.0,0.00021914,2]
[342090116,1731429032442,-300.0,0.00021914,2]
[342090118,1731429032451,-500.0,0.00021916,2]
[342090120,1731429032461,-500.0,0.00021916,2]
[342090122,1731429032470,-500.0,0.00021916,2]
[342090124,1731429032479,-500.0,0.00021916,2]
[342090126,1731429032488,-444.82067297,0.00021916,2]
[342090128,1731429032502,-168.61406624,0.00021916,2]
[342090130,1731429032512,-500.0,0.00021917,2]
[342090132,1731429032522,-561.07882226,0.00021917,2]
[342090134,1731429032531,-500.0,0.00021917,2]
[342090136,1731429032541,-500.0,0.00021917,2]
[342090138,1731429032551,-500.0,0.00021917,2]
[342090140,1731429032560,-500.0,0.00021917,2]
[342090142,1731429032570,-500.0,0.00021917,2]
[342090144,1731429032580,-500.0,0.00021917,2]
[342090146,1731429032590,-500.0,0.00021917,2]
[342090148,1731429032600,-500.0,0.00021917,2]
[342090150,1731429032609,-514.68752469,0.00021917,2]
[342090152,1731429032619,-500.0,0.00021917,2]
[342090154,1731429032628,-500.0,0.00021917,2]
[342090156,1731429032638,-500.0,0.00021917,2]
[342090158,1731429032647,-500.0,0.00021917,2]
[342090160,1731429032656,-503.47297231,0.00021917,2]
[342090162,1731429032666,-500.0,0.00021917,2]
[342090164,1731429032675,-500.0,0.00021917,2]
[342090166,1731429032690,-541.42330794,0.00021917,2]
[342090168,1731429032700,-500.0,0.00021917,2]
[342090170,1731429032709,-200.0,0.00021917,2]
[342090172,1731429032719,-504.50141891,0.00021917,2]
[342090174,1731429032728,-500.0,0.00021917,2]
[342090176,1731429032739,-517.90175474,0.00021917,2]
[342090178,1731429032749,-533.4014872,0.00021917,2]
[342090180,1731429032758,-508.5779412,0.00021917,2]
[342090182,1731429032768,-500.0,0.00021917,2]
[342090184,1731429032778,-509.03064496,0.00021917,2]
[342090186,1731429032787,-503.29433797,0.00021917,2]
[342090188,1731429032796,-500.0,0.00021917,2]
[342090198,1731429032903,-500.0,0.00021917,2]
[342090200,1731429032913,-500.0,0.00021917,2]
[342090202,1731429032923,-500.0,0.00021917,2]
[342090203,1731429032936,-500.0,0.00021917,2]
[342090205,1731429032945,-500.0,0.00021917,2]
[342090206,1731429032954,-500.0,0.00021917,2]
[342090208,1731429032962,-500.0,0.00021917,2]
[342090209,1731429032971,-500.0,0.00021917,2]
[342090211,1731429032981,-500.0,0.00021917,2]
[342090213,1731429032990,-500.0,0.00021917,2]
[342090214,1731429033000,-500.0,0.00021917,2]
[342090216,1731429033009,-503.75073779,0.00021917,2]
[342090217,1731429033019,-529.99112601,0.00021917,2]
[342090219,1731429033028,-500.0,0.00021917,2]
[342090221,1731429033038,-500.0,0.00021917,2]
[342090222,1731429033047,-500.0,0.00021917,2]
[342090224,1731429033057,-504.06978989,0.00021917,2]
[342090225,1731429033066,-500.0,0.00021917,2]
[342090227,1731429033075,-500.0,0.00021917,2]
[342090228,1731429033085,-500.0,0.00021917,2]
[342090230,1731429033095,-505.83565565,0.00021917,2]
[342090231,1731429033106,-500.0,0.00021917,2]
[342090233,1731429033117,-500.0,0.00021917,2]
[342090234,1731429033127,-500.0,0.00021917,2]
[342090235,1731429033137,-500.0,0.00021917,2]
[342090236,1731429033148,-500.0,0.00021917,2]
[342090237,1731429033157,-500.54403551,0.00021917,2]
[342090238,1731429033168,-1000.0,0.00021917,5]
[342090239,1731429033180,-513.95230677,0.00021917,2]
[342090240,1731429033190,-500.0,0.00021917,2]
[342090242,1731429033200,-185.35983611,0.00021917,2]
[342090243,1731429033210,-596.84,0.00021917,2]
[342090245,1731429033221,-500.0,0.00021917,2]
[342090246,1731429033231,-500.0,0.00021917,2]
[342090247,1731429033241,-500.0,0.00021917,2]
[342090248,1731429033252,-500.0,0.00021917,2]
[342090249,1731429033262,-500.0,0.00021917,2]
[342090250,1731429033272,-500.0,0.00021917,2]
[342090251,1731429033284,-500.0,0.00021917,2]
[342090252,1731429033294,-506.71689286,0.00021917,2]
[342090253,1731429033304,-508.78054141,0.00021917,2]
[342090254,1731429033315,-500.0,0.00021917,2]
[342090255,1731429033325,-500.0,0.00021917,2]
[342090256,1731429033335,-393.09022301,0.00021917,2]
[342090257,1731429033345,-500.0,0.00021917,2]
[342090258,1731429033355,-505.2165832,0.00021917,2]
[342090259,1731429033365,-500.0,0.00021917,2]
[342090260,1731429033374,-500.0,0.00021917,2]
[342090261,1731429033384,-500.0,0.00021917,2]
[342090262,1731429033395,-613.96602495,0.00021917,2]
[342090264,1731429033405,-500.0,0.00021917,2]
[342090265,1731429033415,-500.0,0.00021917,2]
[342090266,1731429033424,-500.0,0.00021917,2]
[342090267,1731429033441,-500.0,0.00021917,2]
[342090268,1731429033450,-500.0,0.00021917,2]
[342090270,1731429033460,-500.0,0.00021917,2]
[342090272,1731429033470,-500.0,0.00021917,2]
[342090273,1731429033480,-500.0,0.00021917,2]
[342090274,1731429033490,-500.0,0.00021917,2]
[342090275,1731429033503,-540.55493491,0.00021917,2]
[342090276,1731429033514,-500.0,0.00021917,2]
[342090277,1731429033525,-500.0,0.00021917,2]
[342090278,1731429033535,-300.8916,0.00021917,2]
[342090279,1731429033547,-500.0,0.00021917,2]
[342090281,1731429033558,-500.0,0.00021917,2]
[342090282,1731429033568,-500.0,0.00021917,2]
[342090284,1731429033580,-504.73003973,0.00021917,2]
[342090286,1731429033593,-500.0,0.00021917,2]
[342090287,1731429033602,-602.13526394,0.00021917,2]
[342090288,1731429033612,-623.55505419,0.00021917,2]
[342090289,1731429033622,-500.0,0.00021917,2]
[342090290,1731429033632,-500.0,0.00021917,2]
[342090291,1731429033641,-500.0,0.00021917,2]
[342090292,1731429033650,-500.0,0.00021917,2]
[342090293,1731429033660,-500.0,0.00021917,2]
[342090294,1731429033670,-406.71029407,0.00021917,2]
[342090295,1731429033685,-500.0,0.00021917,2]
[342090296,1731429033695,-500.0,0.00021917,2]
[342090298,1731429033705,-500.0,0.00021917,2]
[342090300,1731429033715,-500.0,0.00021917,2]
[342090301,1731429033725,-518.21894739,0.00021917,2]
[342090303,1731429033735,-500.0,0.00021917,2]
[342090305,1731429033746,-502.67898268,0.00021917,2]
[342090306,1731429033756,-347.61586664,0.00021917,2]
[342090308,1731429033765,-500.0,0.00021917,2]
[342090310,1731429033775,-500.0,0.00021917,2]
[342090311,1731429033785,-9728.04,0.00021917,2]
[342090313,1731429033795,-500.0,0.00021917,2]
[342090315,1731429033804,-511.39603391,0.00021917,2]
[342090316,1731429033814,-518.81849311,0.00021917,2]
[342090318,1731429033824,-2247.58,0.00021917,2]
[342090320,1731429033833,-500.0,0.00021917,2]
[342090321,1731429033843,-396.77380311,0.00021917,2]
[342090323,1731429033853,-500.0,0.00021917,2]
[342090325,1731429033863,-500.0,0.00021917,2]
[342090326,1731429033873,-500.0,0.00021917,2]
[342090328,1731429033882,-898.34,0.00021917,2]
[342090330,1731429033893,-500.0,0.00021917,2]
[342090331,1731429033902,-982.1,0.00021917,2]
[342090333,1731429033912,-337.92939488,0.00021917,2]
[342090335,1731429033921,-500.0,0.00021917,2]
[342090336,1731429033933,-500.0,0.00021917,2]
[342090338,1731429033943,-500.0,0.00021917,2]
[342090340,1731429033953,-1259.12,0.00021917,2]
[342090342,1731429033963,-1259.12,0.00021917,2]
[342090343,1731429033973,-1259.12,0.00021917,2]
[342090345,1731429033982,-1259.12,0.00021917,2]
[342090347,1731429033992,-1259.12,0.00021917,2]
[342090348,1731429034002,-1259.12,0.00021917,2]
[342090350,1731429034013,-1259.12,0.00021917,2]
[342090352,1731429034022,-1259.12,0.00021917,2]
[342090354,1731429034033,-222.1410081,0.00021917,2]
[342090355,1731429034043,-500.0,0.00021917,2]
[342090357,1731429034053,-500.0,0.00021917,2]
[342090359,1731429034063,-512.58207247,0.00021917,2]
[342090360,1731429034073,-500.0,0.00021917,2]
[342090362,1731429034083,-500.0,0.00021917,2]
[342090364,1731429034092,-500.0,0.00021917,2]
[342090365,1731429034102,-1453.04,0.00021917,2]
[342090367,1731429034112,-500.0,0.00021917,2]
[342090369,1731429034121,-500.0,0.00021917,2]
[342090371,1731429034130,-500.0,0.00021917,2]
[342090372,1731429034140,-1008.36,0.00021917,2]
[342090374,1731429034149,-500.0,0.00021917,2]
[342090376,1731429034159,-500.0,0.00021917,2]
[342090377,1731429034168,-500.0,0.00021917,2]
[342090379,1731429034178,-500.0,0.00021917,2]
[342090381,1731429034191,-509.28142649,0.00021917,2]
[342090382,1731429034200,-500.0,0.00021917,2]
[342090384,1731429034210,-500.0,0.00021917,2]
[342090386,1731429034220,-500.0,0.00021917,2]
[342090387,1731429034230,-500.0,0.00021917,2]
[342090389,1731429034241,-509.96933888,0.00021917,2]